[Event "Championnat du monde jeunes U10"]
[Date "2024.11.20"]
[White "Gusev, Daniil Den"]
[Black "Qian, Qipeng"]
[WhiteElo "1863"]
[BlackElo "1641"]
[Round "6.36"]
[Result "0-1"]
[TimeControl "5400+30"]

1. e4 {[%clk 1:30:55]} 1... e6 {[%clk 1:30:32]} 2. d4 {[%clk 1:30:54]} 2... d5
{[%clk 1:30:44]} 3. Bd3 {[%clk 1:28:20]} 3... dxe4 {[%clk 1:30:11]} 4. Bxe4
{[%clk 1:28:20]} 4... Nf6 {[%clk 1:30:14]} 5. Bf3 {[%clk 1:27:37]} 5... c5
{[%clk 1:30:17]} 6. c3 {[%clk 1:27:00]} 6... cxd4 {[%clk 1:29:48]} 7. cxd4
{[%clk 1:26:41]} 7... Bb4+ {[%clk 1:29:00]} 8. Bd2 {[%clk 1:20:51]} 8... Bxd2+
{[%clk 1:29:03]} 9. Qxd2 {[%clk 1:20:48]} 9... O-O {[%clk 1:29:15]} 10. Ne2
{[%clk 1:19:34]} 10... Nc6 {[%clk 1:28:55]} 11. Nbc3 {[%clk 1:17:49]} 11... Nb4
{[%clk 1:28:55]} 12. Rd1 {[%clk 1:16:04]} 12... Nbd5 {[%clk 1:29:04]} 13. O-O
{[%clk 1:15:15]} 13... b6 {[%clk 1:28:32]} 14. Nc1 {[%clk 1:07:00]} 14... Bb7
{[%clk 1:26:56]} 15. N3e2 {[%clk 1:04:25]} 15... Rc8 {[%clk 1:24:14]} 16. Nd3
{[%clk 1:04:00]} 16... Ba6 {[%clk 1:22:27]} 17. Ne5 {[%clk 0:58:42]} 17... Qe7
{[%clk 1:21:39]} 18. a3 {[%clk 0:58:23]} 18... Rfd8 {[%clk 1:17:34]} 19. Rc1
{[%clk 0:55:59]} 19... Qd6 {[%clk 1:15:43]} 20. Rfd1 {[%clk 0:53:22]} 20... h6
{[%clk 1:08:42]} 21. g3 {[%clk 0:47:00]} 21... Ne7 {[%clk 1:07:43]} 22. b4
{[%clk 0:29:21]} 22... Rxc1 {[%clk 1:08:05]} 23. Nxc1 {[%clk 0:29:11]} 23... Nf5
{[%clk 1:06:39]} 24. Nb3 {[%clk 0:25:55]} 24... Rc8 {[%clk 1:04:29]} 25. a4
{[%clk 0:23:36]} 25... Bc4 {[%clk 1:03:43]} 26. Rc1 {[%clk 0:23:36]} 26... Ba6
{[%clk 1:03:42]} 27. b5 {[%clk 0:21:27]} 27... Rxc1+ {[%clk 1:03:25]} 28. Qxc1
{[%clk 0:21:44]} 28... Nxd4 {[%clk 0:56:03]} 29. Nxd4 {[%clk 0:21:37]} 29...
Qxd4 {[%clk 0:55:24]} 30. Nc6 {[%clk 0:21:47]} 30... Qd3 {[%clk 0:55:20]} 31.
Qf4 {[%clk 0:13:49]} 31... e5 {[%clk 0:53:57]} 32. Nxe5 {[%clk 0:12:48]} 32...
Qb1+ {[%clk 0:54:22]} 33. Kg2 {[%clk 0:13:15]} 33... Bc8 {[%clk 0:54:28]} 34.
Nc6 {[%clk 0:12:46]} 34... Be6 {[%clk 0:53:56]} 35. Nxa7 {[%clk 0:12:04]} 35...
Kh7 {[%clk 0:52:32]} 36. Nc6 {[%clk 0:11:09]} 36... Qd3 {[%clk 0:42:22]} 37. Ne5
{[%clk 0:07:48]} 37... Qd8 {[%clk 0:42:26]} 38. Nc6 {[%clk 0:07:31]} 38... Qd3
{[%clk 0:42:51]} 39. Qe3 {[%clk 0:06:34]} 39... Qf5 {[%clk 0:42:51]} 40. Qxb6
{[%clk 0:05:47]} 40... Qh3+ {[%clk 0:39:15]} 41. Kg1 {[%clk 0:06:14]} 41... Ng4
{[%clk 0:38:45]} 42. Bxg4 {[%clk 0:05:50]} 42... Qxg4 {[%clk 0:36:43]} 43. Qd4
{[%clk 0:04:54]} 43... Qe2 {[%clk 0:35:44]} 44. Ne5 {[%clk 0:04:22]} 44... g6
{[%clk 0:35:29]} 45. Qe3 {[%clk 0:03:54]} 45... Qd1+ {[%clk 0:35:53]} 46. Kg2
{[%clk 0:04:18]} 46... Qxa4 {[%clk 0:36:15]} 47. b6 {[%clk 0:04:42]} 47... Qa8+
{[%clk 0:35:44]} 48. f3 {[%clk 0:03:11]} 48... Qa2+ {[%clk 0:35:38]} 49. Kf1
{[%clk 0:02:22]} 49... Qa6+ {[%clk 0:34:24]} 50. Kf2 Qa2+ {[%clk 0:34:36]} 51.
Qe2 {[%clk 0:02:18]} 51... Qb1 {[%clk 0:34:32]} 52. Qe3 {[%clk 0:02:29]} 52...
Qb2+ {[%clk 0:34:52]} 53. Ke1 {[%clk 0:02:53]} 53... Qb1+ {[%clk 0:35:10]} 54.
Kd2 {[%clk 0:03:15]} 54... Qb2+ {[%clk 0:35:38]} 55. Ke1 {[%clk 0:02:42]} 55...
Qb1+ {[%clk 0:36:03]} 56. Kf2 {[%clk 0:02:29]} 56... Qb2+ {[%clk 0:36:30]} 57.
Kg1 {[%clk 0:02:39]} 57... Bh3 {[%clk 0:36:51]} 58. Qf2 {[%clk 0:00:39]} 58...
Qb1+ {[%clk 0:37:16]} 0-1

[Variant "Standard"]
[Site "Europe Echecs"]

[Event "Championnat du monde jeunes U10"]
[Date "2024.11.20"]
[White "Garcia Tanjala, Marko"]
[Black "Hochman, Gur"]
[WhiteElo "1833"]
[BlackElo "1626"]
[Round "6.37"]
[Result "1-0"]
[TimeControl "5400+30"]

1. e4 {[%clk 1:30:46]} 1... e6 {[%clk 1:30:55]} 2. d4 {[%clk 1:31:05]} 2... d5
{[%clk 1:31:20]} 3. exd5 {[%clk 1:31:30]} 3... exd5 {[%clk 1:31:42]} 4. Bd3
{[%clk 1:31:41]} 4... Nc6 {[%clk 1:32:00]} 5. c3 {[%clk 1:31:42]} 5... Bd6
{[%clk 1:32:06]} 6. Ne2 {[%clk 1:30:20]} 6... Nge7 {[%clk 1:32:18]} 7. Qc2
{[%clk 1:27:49]} 7... Be6 {[%clk 1:31:11]} 8. O-O {[%clk 1:23:26]} 8... Qd7
{[%clk 1:30:53]} 9. Bf4 {[%clk 1:21:06]} 9... Bf5 {[%clk 1:29:12]} 10. Bxd6
{[%clk 1:17:13]} 10... Bxd3 {[%clk 1:26:51]} 11. Qxd3 {[%clk 1:17:30]} 11...
Qxd6 {[%clk 1:26:51]} 12. b4 {[%clk 1:16:28]} 12... O-O {[%clk 1:25:50]} 13. Nd2
{[%clk 1:10:10]} 13... Qg6 {[%clk 1:24:14]} 14. Nf4 {[%clk 1:07:57]} 14... Qxd3
{[%clk 1:23:41]} 15. Nxd3 {[%clk 1:07:59]} 15... Ng6 {[%clk 1:22:29]} 16. f4
{[%clk 1:05:26]} 16... f5 {[%clk 1:21:34]} 17. b5 {[%clk 1:01:15]} 17... Nce7
{[%clk 1:16:54]} 18. Nf3 {[%clk 0:58:56]} 18... Rad8 {[%clk 1:14:40]} 19. g3
{[%clk 0:58:38]} 19... Rfe8 {[%clk 1:12:07]} 20. Nc5 {[%clk 0:53:54]} 20... b6
{[%clk 1:10:20]} 21. Ne6 {[%clk 0:54:15]} 21... Rc8 {[%clk 1:08:01]} 22. Neg5
{[%clk 0:45:37]} 22... h6 {[%clk 1:07:39]} 23. Nh3 {[%clk 0:45:08]} 23... Rcd8
{[%clk 1:03:30]} 24. Ne5 {[%clk 0:42:40]} 24... Rd6 {[%clk 1:01:39]} 25. Rfe1
{[%clk 0:40:02]} 25... Re6 {[%clk 0:59:52]} 26. Re3 {[%clk 0:36:32]} 26... Nc8
{[%clk 0:59:07]} 27. a4 {[%clk 0:33:15]} 27... Nd6 {[%clk 0:58:12]} 28. Nf2
{[%clk 0:33:20]} 28... Nf8 {[%clk 0:53:40]} 29. Nfd3 {[%clk 0:32:06]} 29... Nd7
{[%clk 0:48:54]} 30. Nb4 {[%clk 0:30:19]} 30... Nb8 {[%clk 0:45:00]} 31. Nxd5
{[%clk 0:30:01]} 31... Rc8 {[%clk 0:44:49]} 32. Rae1 {[%clk 0:28:42]} 32... Ne4
{[%clk 0:43:55]} 33. g4 {[%clk 0:27:49]} 33... g6 {[%clk 0:42:57]} 34. Nxg6
{[%clk 0:27:40]} 1-0

[Variant "Standard"]
[Site "Europe Echecs"]

[Event "Championnat du monde jeunes U10"]
[Date "2024.11.20"]
[White "Barsov, Mikhail"]
[Black "Mariani, Kim Paul"]
[WhiteElo "1668"]
[BlackElo "1814"]
[Round "6.38"]
[Result "1-0"]
[TimeControl "5400+30"]

1. c4 {[%clk 1:30:57]} 1... c6 {[%clk 1:30:14]} 2. g3 {[%clk 1:31:17]} 2... d5
{[%clk 1:30:14]} 3. Nf3 {[%clk 1:31:29]} 3... e6 {[%clk 1:30:14]} 4. Bg2 {[%clk
1:31:44]} 4... Nf6 {[%clk 1:29:44]} 5. O-O {[%clk 1:31:13]} 5... Nbd7 {[%clk
1:27:55]} 6. d4 {[%clk 1:29:32]} 6... Be7 {[%clk 1:25:11]} 7. b3 {[%clk
1:25:52]} 7... O-O {[%clk 1:23:39]} 8. Bb2 {[%clk 1:22:26]} 8... b6 {[%clk
1:20:18]} 9. Nc3 {[%clk 1:20:39]} 9... Bb7 {[%clk 1:17:43]} 10. cxd5 {[%clk
1:12:35]} 10... exd5 {[%clk 1:11:44]} 11. Rc1 {[%clk 1:07:35]} 11... Re8 {[%clk
1:08:04]} 12. Re1 {[%clk 1:01:11]} 12... Bd6 {[%clk 1:05:21]} 13. Nd2 {[%clk
0:56:10]} 13... c5 {[%clk 0:57:44]} 14. dxc5 {[%clk 0:55:48]} 14... Nxc5 {[%clk
0:57:27]} 15. Nf3 {[%clk 0:54:05]} 15... Nce4 {[%clk 0:54:24]} 16. Nd4 {[%clk
0:42:45]} 16... a6 {[%clk 0:40:45]} 17. e3 {[%clk 0:38:43]} 17... Rc8 {[%clk
0:39:27]} 18. Re2 {[%clk 0:35:49]} 18... b5 {[%clk 0:38:30]} 19. Rec2 {[%clk
0:34:20]} 19... Qd7 {[%clk 0:38:03]} 20. h3 {[%clk 0:25:55]} 20... h6 {[%clk
0:32:16]} 21. Nce2 {[%clk 0:24:21]} 21... Ng5 {[%clk 0:30:57]} 22. Kh2 {[%clk
0:21:48]} 22... Nfe4 {[%clk 0:25:27]} 23. Nf4 {[%clk 0:19:29]} 23... Rxc2 {[%clk
0:24:19]} 24. Rxc2 {[%clk 0:19:12]} 24... Bc8 25. h4 {[%clk 0:12:12]} 25... Bxf4
{[%clk 0:19:26]} 26. exf4 {[%clk 0:12:12]} 26... Nh7 {[%clk 0:16:40]} 27. Nc6
{[%clk 0:08:34]} 27... Nxf2 {[%clk 0:15:01]} 28. Rxf2 {[%clk 0:08:05]} 28...
Qxc6 {[%clk 0:15:28]} 29. Qxd5 {[%clk 0:05:14]} 29... Qg6 {[%clk 0:13:33]} 30.
f5 {[%clk 0:04:20]} 30... Qg4 {[%clk 0:12:58]} 31. Qc6 {[%clk 0:03:43]} 31...
Rf8 {[%clk 0:12:27]} 32. Ba3 {[%clk 0:03:46]} 32... b4 {[%clk 0:12:21]} 33. Rf4
{[%clk 0:04:05]} 33... Qd1 {[%clk 0:11:25]} 34. Bxb4 {[%clk 0:04:08]} 34... Bd7
{[%clk 0:11:26]} 35. Qf3 {[%clk 0:04:24]} 35... Qxf3 {[%clk 0:11:18]} 36. Bxf3
{[%clk 0:04:45]} 36... Nf6 {[%clk 0:11:08]} 37. Bxf8 {[%clk 0:05:08]} 1-0

[Variant "Standard"]
[Site "Europe Echecs"]

[Event "Championnat du monde jeunes U10"]
[Date "2024.11.20"]
[White "Blekh, Erik"]
[Black "Ismailov, Omarbek"]
[WhiteElo "1790"]
[BlackElo "1625"]
[Round "6.39"]
[Result "1-0"]
[TimeControl "5400+30"]

1. Nf3 {[%clk 1:30:53]} 1... d5 {[%clk 1:30:50]} 2. g3 {[%clk 1:30:59]} 2... Bg4
{[%clk 1:30:59]} 3. Bg2 {[%clk 1:31:02]} 3... e6 {[%clk 1:31:11]} 4. O-O {[%clk
1:30:20]} 4... Nf6 {[%clk 1:31:29]} 5. d3 {[%clk 1:28:56]} 5... h6 {[%clk
1:28:58]} 6. h3 {[%clk 1:28:30]} 6... Bxf3 {[%clk 1:29:03]} 7. Bxf3 {[%clk
1:28:51]} 7... c6 {[%clk 1:29:24]} 8. Nd2 {[%clk 1:28:34]} 8... Nbd7 {[%clk
1:27:13]} 9. b3 {[%clk 1:25:54]} 9... Be7 {[%clk 1:27:00]} 10. Bb2 {[%clk
1:25:53]} 10... O-O {[%clk 1:26:51]} 11. e4 {[%clk 1:24:43]} 11... a5 {[%clk
1:23:02]} 12. e5 {[%clk 1:21:48]} 12... Nh7 {[%clk 1:20:04]} 13. a4 {[%clk
1:21:50]} 13... Qb6 {[%clk 1:12:49]} 14. Bg2 {[%clk 1:19:55]} 14... Rfc8 {[%clk
1:09:51]} 15. Kh2 {[%clk 1:18:14]} 15... Nhf8 {[%clk 1:01:32]} 16. f4 {[%clk
1:17:32]} 16... Ng6 {[%clk 1:01:10]} 17. Qe2 {[%clk 1:16:01]} 17... Bc5 {[%clk
0:59:09]} 18. Rae1 {[%clk 1:13:44]} 18... Ne7 {[%clk 0:47:12]} 19. g4 {[%clk
1:12:16]} 19... g6 {[%clk 0:47:32]} 20. Nf3 {[%clk 1:11:39]} 20... Qa6 {[%clk
0:46:16]} 21. Qd2 Kh7 {[%clk 0:45:46]} 22. Bc1 {[%clk 1:07:01]} 22... Ng8 {[%clk
0:43:13]} 23. Kh1 {[%clk 1:06:29]} 23... b5 {[%clk 0:41:40]} 24. f5 {[%clk
1:04:31]} 24... Nf8 {[%clk 0:39:46]} 25. Qf4 {[%clk 1:02:40]} 25... Ra7 {[%clk
0:39:32]} 26. Qg3 {[%clk 1:01:35]} 26... Bb4 {[%clk 0:35:17]} 27. Re2 {[%clk
1:01:23]} 27... bxa4 {[%clk 0:35:27]} 28. bxa4 {[%clk 1:01:32]} 28... c5 {[%clk
0:32:16]} 29. Qh4 {[%clk 1:00:43]} 29... exf5 {[%clk 0:29:40]} 30. gxf5 {[%clk
1:00:02]} 30... gxf5 {[%clk 0:29:55]} 31. Qf4 {[%clk 0:58:17]} 31... Qe6 {[%clk
0:25:59]} 32. Nh4 {[%clk 0:52:05]} 32... Ng6 {[%clk 0:22:06]} 33. Qxf5 {[%clk
0:52:10]} 33... Qxf5 {[%clk 0:22:24]} 34. Nxf5 {[%clk 0:52:34]} 34... Rd8 {[%clk
0:22:46]} 35. Nd6 {[%clk 0:47:49]} 35... Nxe5 {[%clk 0:21:37]} 36. Nb5 {[%clk
0:46:43]} 36... Re7 {[%clk 0:19:46]} 37. Bf4 {[%clk 0:46:46]} 37... f6 {[%clk
0:17:30]} 38. Bxe5 {[%clk 0:46:40]} 38... fxe5 {[%clk 0:17:45]} 39. c3 {[%clk
0:47:02]} 39... Kg6 {[%clk 0:17:45]} 40. Re3 {[%clk 0:45:05]} 40... Nf6 {[%clk
0:13:43]} 41. cxb4 {[%clk 0:44:54]} 41... axb4 {[%clk 0:11:39]} 42. Rg3+ {[%clk
0:45:12]} 42... Kf7 {[%clk 0:11:59]} 43. Rgf3 {[%clk 0:45:37]} 43... Re6 {[%clk
0:12:20]} 44. Nc7 {[%clk 0:45:16]} 44... Red6 {[%clk 0:07:56]} 45. Nxd5 {[%clk
0:45:24]} 45... Rxd5 {[%clk 0:08:18]} 46. Rxf6+ {[%clk 0:45:48]} 46... Kg7
{[%clk 0:08:43]} 47. Bxd5 {[%clk 0:45:39]} 47... Rxd5 {[%clk 0:09:08]} 48. R6f3
{[%clk 0:45:59]} 48... Rd7 {[%clk 0:09:06]} 49. Re3 {[%clk 0:46:12]} 49... b3
{[%clk 0:08:39]} 50. Rb1 {[%clk 0:46:25]} 50... Kf6 {[%clk 0:08:38]} 51. Rxb3
{[%clk 0:46:49]} 51... Kf5 {[%clk 0:08:30]} 52. Rf3+ {[%clk 0:47:08]} 52... Kg5
{[%clk 0:08:42]} 53. Rc3 {[%clk 0:47:04]} 53... Rc7 {[%clk 0:08:47]} 54. Rc4
{[%clk 0:47:17]} 54... Rc6 {[%clk 0:08:47]} 55. Rg4+ {[%clk 0:47:40]} 1-0

[Variant "Standard"]
[Site "Europe Echecs"]

[Event "Championnat du monde jeunes U10"]
[Date "2024.11.20"]
[White "Todmunkh, Turbat"]
[Black "Czech, Emil"]
[WhiteElo "1773"]
[BlackElo "1608"]
[Round "6.40"]
[Result "1/2-1/2"]
[TimeControl "5400+30"]

1. e4 {[%clk 1:30:59]} 1... e6 {[%clk 1:30:51]} 2. Qe2 {[%clk 1:31:02]} 2... e5
{[%clk 1:31:09]} 3. Nf3 {[%clk 1:31:18]} 3... Nc6 {[%clk 1:31:05]} 4. g3 {[%clk
1:31:03]} 4... d6 {[%clk 1:28:16]} 5. Bg2 {[%clk 1:31:22]} 5... a6 {[%clk
1:21:47]} 6. O-O {[%clk 1:29:34]} 6... Bg4 {[%clk 1:17:18]} 7. c3 {[%clk
1:29:00]} 7... Qd7 {[%clk 1:12:40]} 8. d3 {[%clk 1:25:43]} 8... g6 {[%clk
1:10:45]} 9. Re1 {[%clk 1:22:05]} 9... Bg7 {[%clk 1:08:30]} 10. a4 {[%clk
1:21:07]} 10... Nge7 {[%clk 1:06:27]} 11. Bg5 {[%clk 1:11:15]} 11... O-O {[%clk
1:04:26]} 12. Bxe7 {[%clk 1:06:41]} 12... Nxe7 {[%clk 1:03:29]} 13. Nbd2 {[%clk
1:03:43]} 13... f5 {[%clk 1:00:26]} 14. h3 {[%clk 1:02:26]} 14... fxe4 {[%clk
0:57:42]} 15. hxg4 {[%clk 1:02:16]} 15... exf3 {[%clk 0:57:45]} 16. Bxf3 {[%clk
1:02:41]} 16... Rab8 {[%clk 0:41:03]} 17. Kg2 {[%clk 0:48:06]} 17... b5 {[%clk
0:34:06]} 18. axb5 {[%clk 0:41:49]} 18... axb5 {[%clk 0:34:10]} 19. b4 {[%clk
0:33:10]} 19... c6 {[%clk 0:31:01]} 20. Ra5 {[%clk 0:31:21]} 20... Nd5 {[%clk
0:30:05]} 21. Ne4 {[%clk 0:28:37]} 21... Nf6 {[%clk 0:23:19]} 22. Nxf6+ {[%clk
0:23:30]} 22... Bxf6 {[%clk 0:23:40]} 23. Qe3 {[%clk 0:23:53]} 23... e4 {[%clk
0:22:10]} 24. dxe4 {[%clk 0:21:11]} 24... Rb7 {[%clk 0:18:03]} 25. Rea1 {[%clk
0:20:19]} 25... Qg7 {[%clk 0:12:35]} 26. e5 {[%clk 0:04:34]} 26... Bxe5 {[%clk
0:10:26]} 27. Bxc6 {[%clk 0:04:51]} 27... Bxc3 {[%clk 0:08:34]} 28. Bxb7 {[%clk
0:00:38]} 28... Qxb7+ {[%clk 0:08:38]} 29. f3 {[%clk 0:01:01]} 29... Bxa1 {[%clk
0:08:50]} 30. Rxa1 {[%clk 0:00:43]} 30... Qg7 {[%clk 0:05:18]} 31. Ra7 {[%clk
0:00:33]} 31... Qb2+ {[%clk 0:05:17]} 32. Kh3 {[%clk 0:00:34]} 32... Qb1 {[%clk
0:04:35]} 33. Kg2 {[%clk 0:00:39]} 33... Qc2+ {[%clk 0:03:56]} 34. Kg1 {[%clk
0:00:33]} 34... Qd1+ {[%clk 0:03:40]} 35. Kf2 {[%clk 0:00:40]} 35... Qc2+ {[%clk
0:03:14]} 36. Qe2 {[%clk 0:00:40]} 36... Rc8 {[%clk 0:02:49]} 37. Qxc2 {[%clk
0:00:33]} 37... Rxc2+ {[%clk 0:03:11]} 38. Ke3 {[%clk 0:01:00]} 38... Rc4 {[%clk
0:03:18]} 39. Rd7 {[%clk 0:00:48]} 39... Rxb4 {[%clk 0:03:40]} 40. Rxd6 {[%clk
0:01:14]} 40... Rc4 {[%clk 0:00:43]} 41. Rb6 {[%clk 0:00:53]} 41... b4 {[%clk
0:00:53]} 42. Rb7 {[%clk 0:01:17]} 42... h6 {[%clk 0:00:43]} 43. Kd3 {[%clk
0:00:37]} 43... Rc3+ {[%clk 0:00:59]} 44. Ke4 {[%clk 0:01:02]} 44... b3 {[%clk
0:00:54]} 45. Kf4 {[%clk 0:00:38]} 45... Rd3 {[%clk 0:00:54]} 46. g5 {[%clk
0:00:32]} 46... hxg5+ {[%clk 0:00:42]} 47. Kxg5 {[%clk 0:00:34]} 47... Rxf3
{[%clk 0:00:49]} 48. g4 {[%clk 0:00:58]} 48... Rg3 {[%clk 0:00:46]} 49. Kf4
{[%clk 0:00:43]} 49... Rc3 {[%clk 0:01:09]} 50. g5 {[%clk 0:00:51]} 50... Kf8
{[%clk 0:00:56]} 51. Ke5 {[%clk 0:00:37]} 51... Kg8 {[%clk 0:00:50]} 52. Kf6
{[%clk 0:00:33]} 52... Rc6+ {[%clk 0:01:10]} 53. Ke5 {[%clk 0:00:38]} 53... Rc5+
{[%clk 0:00:57]} 54. Ke4 1/2-1/2

[Variant "Standard"]
[Site "Europe Echecs"]

[Event "Championnat du monde jeunes U10"]
[Date "2024.11.20"]
[White "Fattori Dittmar, Luca"]
[Black "Aitmukhanov, Arsen"]
[WhiteElo "1766"]
[BlackElo "1579"]
[Round "6.41"]
[Result "0-1"]
[TimeControl "5400+30"]

1. e4 {[%clk 1:30:58]} 1... c5 {[%clk 1:30:56]} 2. d4 {[%clk 1:31:03]} 2... cxd4
{[%clk 1:31:21]} 3. Qxd4 {[%clk 1:30:54]} 3... Nc6 {[%clk 1:30:42]} 4. Qd3
{[%clk 1:30:56]} 4... g6 {[%clk 1:27:23]} 5. Nc3 {[%clk 1:31:05]} 5... d6 {[%clk
1:27:02]} 6. Nf3 {[%clk 1:31:28]} 6... Bg7 {[%clk 1:27:03]} 7. Be2 {[%clk
1:31:33]} 7... Nf6 {[%clk 1:27:02]} 8. O-O {[%clk 1:31:56]} 8... O-O {[%clk
1:27:25]} 9. Nd5 {[%clk 1:32:12]} 9... Nxd5 {[%clk 1:26:58]} 10. exd5 {[%clk
1:32:37]} 10... Ne5 {[%clk 1:22:56]} 11. Nxe5 {[%clk 1:32:28]} 11... dxe5 {[%clk
1:21:07]} 12. c3 {[%clk 1:31:08]} 12... Bf5 {[%clk 1:20:21]} 13. Qd1 {[%clk
1:30:34]} 13... Qd6 {[%clk 1:20:20]} 14. Qb3 {[%clk 1:28:27]} 14... Rfd8 {[%clk
1:13:26]} 15. Be3 {[%clk 1:21:46]} 15... e6 {[%clk 1:01:22]} 16. dxe6 {[%clk
1:21:04]} 16... Bxe6 {[%clk 1:00:41]} 17. Qc2 {[%clk 1:13:13]} 17... f5 {[%clk
0:47:58]} 18. Rfd1 {[%clk 1:09:42]} 18... Qc7 {[%clk 0:47:41]} 19. a4 {[%clk
1:05:27]} 19... f4 {[%clk 0:45:49]} 20. Rxd8+ {[%clk 1:02:52]} 20... Rxd8 {[%clk
0:45:59]} 21. Bd2 {[%clk 1:02:09]} 21... Qf7 {[%clk 0:44:33]} 22. Be1 {[%clk
0:59:46]} 22... Bf5 {[%clk 0:42:38]} 23. Qc1 {[%clk 0:59:25]} 23... g5 {[%clk
0:40:38]} 24. c4 {[%clk 0:57:37]} 24... g4 {[%clk 0:38:10]} 25. Bc3 {[%clk
0:55:50]} 25... Qh5 {[%clk 0:38:13]} 26. Qe1 {[%clk 0:53:25]} 26... Rd6 {[%clk
0:34:15]} 27. h3 {[%clk 0:51:53]} 27... f3 {[%clk 0:33:56]} 28. hxg4 {[%clk
0:51:44]} 28... Bxg4 {[%clk 0:34:10]} 29. Bxf3 {[%clk 0:51:35]} 29... Bxf3
{[%clk 0:34:18]} 30. gxf3 {[%clk 0:51:56]} 30... Rh6 {[%clk 0:34:43]} 31. Kg2
{[%clk 0:51:18]} 31... Qh3+ 0-1

[Variant "Standard"]
[Site "Europe Echecs"]

[Event "Championnat du monde jeunes U10"]
[Date "2024.11.20"]
[White "Aguike, Toshiya"]
[Black "Kostyukovich, Ivan"]
[WhiteElo "1716"]
[BlackElo "1489"]
[Round "6.42"]
[Result "1-0"]
[TimeControl "5400+30"]

1. e4 {[%clk 1:30:47]} 1... e5 {[%clk 1:30:49]} 2. Nf3 {[%clk 1:31:08]} 2... Nc6
{[%clk 1:31:09]} 3. Bc4 {[%clk 1:31:32]} 3... Nf6 {[%clk 1:31:31]} 4. d3 {[%clk
1:31:52]} 4... Bc5 {[%clk 1:31:45]} 5. c3 {[%clk 1:32:15]} 5... a6 {[%clk
1:31:51]} 6. O-O {[%clk 1:32:25]} 6... d6 {[%clk 1:31:28]} 7. Bb3 {[%clk
1:32:47]} 7... h6 {[%clk 1:31:41]} 8. Re1 {[%clk 1:30:41]} 8... g5 {[%clk
1:30:33]} 9. d4 {[%clk 1:20:23]} 9... Ba7 {[%clk 1:30:41]} 10. dxe5 {[%clk
1:12:31]} 10... Ng4 {[%clk 1:30:17]} 11. Re2 {[%clk 1:12:01]} 11... Ngxe5 {[%clk
1:30:33]} 12. Nxe5 {[%clk 1:11:31]} 12... Nxe5 {[%clk 1:30:36]} 13. Be3 {[%clk
1:09:07]} 13... Bxe3 {[%clk 1:30:05]} 14. Rxe3 {[%clk 1:06:43]} 14... c6 {[%clk
1:29:21]} 15. Nd2 {[%clk 1:02:14]} 15... Qf6 {[%clk 1:26:17]} 16. Nc4 {[%clk
0:55:48]} 16... Nxc4 {[%clk 1:22:16]} 17. Bxc4 {[%clk 0:54:52]} 17... O-O {[%clk
1:21:30]} 18. Rd3 {[%clk 0:54:09]} 18... Be6 {[%clk 1:13:58]} 19. Rxd6 {[%clk
0:46:27]} 19... Qe5 {[%clk 1:11:56]} 20. Bxe6 {[%clk 0:44:25]} 20... fxe6 {[%clk
1:10:02]} 21. Qd4 {[%clk 0:44:27]} 21... Qxd4 {[%clk 1:09:16]} 22. Rxd4 {[%clk
0:44:47]} 22... e5 {[%clk 1:09:25]} 23. Rd7 {[%clk 0:45:09]} 23... Rf7 {[%clk
1:09:33]} 24. Rad1 {[%clk 0:45:31]} 24... Raf8 {[%clk 1:08:46]} 25. f3 {[%clk
0:42:24]} 25... Kg7 {[%clk 1:07:57]} 26. Kf2 {[%clk 0:38:15]} 26... Rxd7 {[%clk
1:07:52]} 27. Rxd7+ {[%clk 0:38:35]} 27... Rf7 {[%clk 1:08:16]} 28. Rxf7+ {[%clk
0:35:57]} 28... Kxf7 {[%clk 1:08:30]} 29. Ke3 {[%clk 0:36:16]} 29... Ke6 {[%clk
1:08:02]} 30. g3 {[%clk 0:36:24]} 30... c5 {[%clk 1:07:14]} 31. c4 {[%clk
0:35:04]} 31... b5 {[%clk 1:06:07]} 32. cxb5 {[%clk 0:35:19]} 32... axb5 {[%clk
1:06:33]} 33. f4 {[%clk 0:32:46]} 33... exf4+ {[%clk 1:04:27]} 34. gxf4 {[%clk
0:32:57]} 34... gxf4+ {[%clk 1:03:16]} 35. Kxf4 {[%clk 0:33:19]} 35... Kf6
{[%clk 1:01:38]} 36. e5+ {[%clk 0:33:31]} 36... Ke6 {[%clk 1:01:45]} 37. Ke4
{[%clk 0:33:56]} 37... h5 {[%clk 1:00:28]} 38. h4 {[%clk 0:34:13]} 38... b4
{[%clk 1:00:10]} 39. b3 {[%clk 0:34:36]} 39... Kd7 {[%clk 1:00:26]} 40. Kd5
{[%clk 0:34:50]} 40... Ke7 {[%clk 0:59:02]} 41. Kxc5 {[%clk 0:33:28]} 41... Ke6
{[%clk 0:59:10]} 42. Kxb4 {[%clk 0:33:34]} 42... Kxe5 {[%clk 0:59:24]} 43. a4
{[%clk 0:33:59]} 43... Kf4 {[%clk 0:59:40]} 44. a5 {[%clk 0:34:25]} 44... Kg4
{[%clk 0:59:13]} 45. a6 {[%clk 0:34:48]} 45... Kxh4 {[%clk 0:59:21]} 46. a7
{[%clk 0:35:13]} 46... Kg5 {[%clk 0:59:34]} 47. a8=Q {[%clk 0:35:33]} 47... Kh4
{[%clk 0:59:51]} 48. Qh1+ {[%clk 0:35:51]} 48... Kg3 {[%clk 0:59:51]} 49. Qxh5
{[%clk 0:36:09]} 49... Kg2 {[%clk 1:00:03]} 50. Ka4 {[%clk 0:36:32]} 50... Kg3
{[%clk 1:00:21]} 51. b4 {[%clk 0:36:54]} 1-0

[Variant "Standard"]
[Site "Europe Echecs"]